{"text_format":"1","workbook":"xlsx","n_sheets":6,"sheets":["Hinweise","Grundbuch","Hauptbuch","GuV","Bilanz","Kontenplan"],"not_rendered":{"charts":0,"images":18,"macros":1,"external_links":0,"defined_names":0,"comments":0,"pivot_tables":0},"unopened":[],"bounds":{"document_bytes":16777216,"sheet_cells":100000,"rows_first":2000,"rows_last":500,"rows_between":2000,"halvings":0,"cell_chars":16384,"cell_head_chars":4096},"cells_cut":0,"cells_raw":0,"read":"whole","date_system":"1900"}

{"sheet":"Hinweise","index":0,"n_rows":26,"n_cols":1,"rows_kept":26,"cut":false,"hidden":false,"merged":[[0,0,0,7],[2,0,2,1]]}
["Geschäftsgang 9"]
[]
["Voraussetzungen"]
["Um den Geschäftsgang buchen zu können müssen Sie Kenntnisse über die folgenden Lehrninhalte haben:"]
["Buchungen auf Bestandskonten"]
["Buchungen auf Erfolgskonten"]
["Bestandsveränderungen"]
["Umsatzsteuer"]
[]
["Vorgehensweise"]
["1. Wählen Sie die Tabelle \"Grundbuch\"."]
[]
["2. Buchen Sie die Geschäftsvorfälle"]
["    entweder durch Direkteingabe in die entsprechenden Felder des Grundbuchs (Kontennummern und Beträge)"]
["    oder durch Aufruf von Buchungsfenstern. (Klicken Sie dazu jeweils auf die Schaltfläche \"Buchung\" und beenden"]
["    Sie die Eingabe  mit \"OK\".)"]
["    Die Kontennummern sind vierstellig anzugeben. (siehe Kontenplan). Bei zusammengesetzten Buchungssätzen"]
["    sind die Buchungen nach der Höhe der Beträge geordnet vorzunehmen. "]
[]
["3. Sie können sich den Kontenplan mit Kontennummern jederzeit durch Klick auf den"]
["    entsprechenden Button anzeigen lassen."]
[]
["4. Die Richtigkeit Ihrer Buchungen wird bestätigt oder Sie werden auf"]
["    Fehler hingewiesen. (Ohne Buchung werden Fehler angezeigt.)"]
[]
["5. In Anschluß erstellen Sie das Hauptbuch, das GuV und die Bilanz"]

{"sheet":"Grundbuch","index":1,"n_rows":107,"n_cols":11,"rows_kept":107,"cut":false,"hidden":false,"merged":[[100,5,100,6],[101,5,101,6],[103,0,104,0],[99,5,99,6],[95,4,96,4],[95,5,96,5],[95,6,96,6],[95,0,96,0],[95,1,96,1],[95,2,96,2],[95,3,96,3],[93,5,93,6],[81,0,82,0],[84,5,84,6],[85,5,85,6],[86,5,86,6],[88,0,89,0],[92,5,92,6],[77,1,79,2],[77,5,77,6],[78,5,78,6],[79,5,79,6],[91,5,91,6],[63,5,63,6],[67,4,68,4],[67,5,68,5],[67,6,68,6],[71,5,71,6],[49,5,49,6],[50,5,50,6],[51,5,51,6],[60,0,61,0],[60,1,61,1],[60,2,61,2],[60,3,61,3],[60,4,61,4],[56,1,58,2],[56,5,56,6],[57,5,57,6],[58,5,58,6],[60,5,61,5],[60,6,61,6],[53,0,54,0],[30,0,31,0],[35,5,35,6],[36,5,36,6],[98,0,98,2],[38,0,40,0],[33,5,34,6],[42,1,44,2],[42,5,42,6],[43,5,43,6],[44,5,44,6],[63,1,65,2],[84,1,86,2],[91,1,93,2],[46,0,47,0],[49,1,51,2],[70,1,72,2],[19,5,19,6],[20,5,20,6],[21,5,21,6],[23,0,24,0],[26,5,26,6],[26,1,28,2],[27,5,27,6],[28,5,28,6],[16,0,17,0],[1,0,1,4],[2,0,2,4],[5,1,7,2],[5,5,5,6],[6,5,6,6],[7,5,7,6],[9,0,10,0],[12,1,14,2],[12,5,12,6],[13,5,13,6],[14,5,14,6],[106,0,106,6],[64,5,64,6],[65,5,65,6],[67,0,68,0],[67,1,68,1],[67,2,68,2],[67,3,68,3],[70,5,70,6],[72,5,72,6],[74,0,75,0],[74,1,75,1],[74,2,75,2],[74,3,75,3],[74,4,75,4],[74,5,75,5],[74,6,75,6]]}
[]
["Geschäftsvorfälle"]
["Grundbuch"]
[null,null,null,null,null,"Umsatzsteuersatz",0.19]
[]
["1.","Die Tropic GmbH kauft Jeansnieten auf Ziel",null,"netto",4300,{"$f":"IF(AND(B10=\"2020\",B11=\"2600\",E10=\"4400\"),\"Die Konten sind richtig!\",\"Mindestens ein Konto ist falsch!\")","v":"Mindestens ein Konto ist falsch!"}]
["Geschäftsvorfall",null,null,"USt.",null,{"$f":"IF(AND(D10=E6,D11=817,G10=5117),\"Die Beträge sind richtig!\",\"Mindestens ein Betrag ist falsch!\")","v":"Mindestens ein Betrag ist falsch!"}]
[null,null,null,"brutto",null,{"$f":"IF(AND(F6=\"Die Konten sind richtig!\",F7=\"Die Beträge sind richtig!\"),\"Alles richtig!\",\"Es sind noch Fehler vorhanden!\")","v":"Es sind noch Fehler vorhanden!"}]
[null,"Soll","Konto","€","Haben","Konto","€"]
["Buchungssatz","",{"$f":"IF(B10=\"\",\"\",VLOOKUP(B10,Kontenplan!$A$4:$B$33,2))","v":""},null,"",{"$f":"IF(E10=\"\",\"\",VLOOKUP(E10,Kontenplan!$A$4:$B$33,2))","v":""}]
[null,"",{"$f":"IF(B11=\"\",\"\",VLOOKUP(B11,Kontenplan!$A$4:$B$33,2))","v":""}]
[]
["2.","Barverkauf von fertigen Erzeugnissen, im Laden für den Werksverkauf der Tropic GmbH",null,"netto",null,{"$f":"IF(AND(B17=\"2880\",E17=\"5000\",E18=\"4800\"),\"Die Konten sind richtig!\",\"Mindestens ein Konto ist falsch!\")","v":"Mindestens ein Konto ist falsch!"}]
["Geschäftsvorfall",null,null,"USt.",null,{"$f":"IF(AND(D17=714,G17=600,G18=114),\"Die Beträge sind richtig!\",\"Mindestens ein Betrag ist falsch!\")","v":"Mindestens ein Betrag ist falsch!"}]
[null,null,null,"brutto",714,{"$f":"IF(AND(F13=\"Die Konten sind richtig!\",F14=\"Die Beträge sind richtig!\"),\"Alles richtig!\",\"Es sind noch Fehler vorhanden!\")","v":"Es sind noch Fehler vorhanden!"}]
[null,"Soll","Konto","€","Haben","Konto","€"]
["Buchungssatz","",{"$f":"IF(B17=\"\",\"\",VLOOKUP(B17,Kontenplan!$A$4:$B$33,2))","v":""},null,"",{"$f":"IF(E17=\"\",\"\",VLOOKUP(E17,Kontenplan!$A$4:$B$33,2))","v":""}]
[null,null,null,null,"",{"$f":"IF(E18=\"\",\"\",VLOOKUP(E18,Kontenplan!$A$4:$B$33,2))","v":""}]
[null," "]
["3.","Banküberweisung für - Löhne",null,null,19800,{"$f":"IF(AND(B24=\"6200\",B25=\"6300\",E24=\"2800\"),\"Die Konten sind richtig!\",\"Mindestens ein Konto ist falsch!\")","v":"Mindestens ein Konto ist falsch!"}]
["Geschäftsvorfall",null,"           - Gehälter",null,6400,{"$f":"IF(AND(D24=19800,D25=6400,G24=26200),\"Die Beträge sind richtig!\",\"Mindestens ein Betrag ist falsch!\")","v":"Mindestens ein Betrag ist falsch!"}]
[null,null,"             Banklastschrift",null,{"$f":"SUM(E20:E21)","v":26200},{"$f":"IF(AND(F20=\"Die Konten sind richtig!\",F21=\"Die Beträge sind richtig!\"),\"Alles richtig!\",\"Es sind noch Fehler vorhanden!\")","v":"Es sind noch Fehler vorhanden!"}]
[null,"Soll","Konto","€","Haben","Konto","€"]
["Buchungssatz","",{"$f":"IF(B24=\"\",\"\",VLOOKUP(B24,Kontenplan!$A$4:$B$33,2))","v":""},null,"",{"$f":"IF(E24=\"\",\"\",VLOOKUP(E24,Kontenplan!$A$4:$B$33,2))","v":""}]
[null,"",{"$f":"IF(B25=\"\",\"\",VLOOKUP(B25,Kontenplan!$A$4:$B$33,2))","v":""}]
[]
["4.","Verkauf von Jeans, Jeansjacken und Sweatshirts an einen Großhändler gegen Bankscheck",null,"netto",12600,{"$f":"IF(AND(B31=\"2800\",E31=\"5000\",E32=\"4800\"),\"Die Konten sind richtig!\",\"Mindestens ein Konto ist falsch!\")","v":"Mindestens ein Konto ist falsch!"}]
["Geschäftsvorfall",null,null,"USt.",null,{"$f":"IF(AND(D31=14994,G31=12600,G32=2394),\"Die Beträge sind richtig!\",\"Mindestens ein Betrag ist falsch!\")","v":"Mindestens ein Betrag ist falsch!"}]
[null,null,null,"brutto",null,{"$f":"IF(AND(F27=\"Die Konten sind richtig!\",F28=\"Die Beträge sind richtig!\"),\"Alles richtig!\",\"Es sind noch Fehler vorhanden!\")","v":"Es sind noch Fehler vorhanden!"}]
[null,"Soll","Konto","€","Haben","Konto","€"]
["Buchungssatz","",{"$f":"IF(B31=\"\",\"\",VLOOKUP(B31,Kontenplan!$A$4:$B$33,2))","v":""},null,"",{"$f":"IF(E31=\"\",\"\",VLOOKUP(E31,Kontenplan!$A$4:$B$33,2))","v":""}]
[null,null,null,null,"",{"$f":"IF(E32=\"\",\"\",VLOOKUP(E32,Kontenplan!$A$4:$B$33,2))","v":""}]
[]
["5.","Stoffverbrauch lt. Materialentnahmescheine für",null,null,null,{"$f":"IF(AND(B39=\"6000\",E39=\"2000\",B40=\"6020\",E40=\"2020\",B41=\"6030\",E41=\"2030\"),\"Die Konten sind richtig!\",\"Mindestens ein Konto ist falsch!\")","v":"Mindestens ein Konto ist falsch!"}]
["Geschäftsvorfall",null,"           - Rohstoffe",null,4800]
[null,null,"           - Hilfsstoffe",null,2300,{"$f":"IF(AND(D39=E35,D40=E36,D41=E37,G39=E35,G40=E36,G41=E37),\"Die Beträge sind richtig!\",\"Mindestens ein Betrag ist falsch!\")","v":"Mindestens ein Betrag ist falsch!"}]
[null,null,"           - Betriebsstoffe",null,450,{"$f":"IF(AND(F34=\"Die Konten sind richtig!\",F36=\"Die Beträge sind richtig!\"),\"Alles richtig!\",\"Es sind noch Fehler vorhanden!\")","v":"Es sind noch Fehler vorhanden!"}]
[null,"Soll","Konto","€","Haben","Konto","€"]
["Buchungssatz","",{"$f":"IF(B39=\"\",\"\",VLOOKUP(B39,Kontenplan!$A$4:$B$33,2))","v":""},null,"",{"$f":"IF(E39=\"\",\"\",VLOOKUP(E39,Kontenplan!$A$4:$B$33,2))","v":""}]
[null,"",{"$f":"IF(B40=\"\",\"\",VLOOKUP(B40,Kontenplan!$A$4:$B$33,2))","v":""},null,"",{"$f":"IF(E40=\"\",\"\",VLOOKUP(E40,Kontenplan!$A$4:$B$33,2))","v":""}]
[null,"",{"$f":"IF(B41=\"\",\"\",VLOOKUP(B41,Kontenplan!$A$4:$B$33,2))","v":""},null,"",{"$f":"IF(E41=\"\",\"\",VLOOKUP(E41,Kontenplan!$A$4:$B$33,2))","v":""}]
[]
["6.","Verkauf von fertigen Erzeugnissen auf Ziel,",null,"netto",null,{"$f":"IF(AND(B47=\"2400\",E47=\"5000\",E48=\"4800\"),\"Die Konten sind richtig!\",\"Mindestens ein Konto ist falsch!\")","v":"Mindestens ein Konto ist falsch!"}]
["Geschäftsvorfall",null,null,"USt.",null,{"$f":"IF(AND(D47=76160,G47=64000,G48=12160),\"Die Beträge sind richtig!\",\"Mindestens ein Betrag ist falsch!\")","v":"Mindestens ein Betrag ist falsch!"}]
[null,null,null,"brutto",76160,{"$f":"IF(AND(F43=\"Die Konten sind richtig!\",F44=\"Die Beträge sind richtig!\"),\"Alles richtig!\",\"Es sind noch Fehler vorhanden!\")","v":"Es sind noch Fehler vorhanden!"}]
[null,"Soll","Konto","€","Haben","Konto","€"]
["Buchungssatz","",{"$f":"IF(B47=\"\",\"\",VLOOKUP(B47,Kontenplan!$A$4:$B$33,2))","v":""},null,"",{"$f":"IF(E47=\"\",\"\",VLOOKUP(E47,Kontenplan!$A$4:$B$33,2))","v":""}]
[null,null,null,null,"",{"$f":"IF(E48=\"\",\"\",VLOOKUP(E48,Kontenplan!$A$4:$B$33,2))","v":""}]
[]
["7.","Barzahlung für ein Werbeinserat in der Festschrift eines Sportvereins zum 100jährigen Vereinsjubiläum",null,"netto",null,{"$f":"IF(AND(B54=\"6870\",B55=\"2600\",E54=\"2880\"),\"Die Konten sind richtig!\",\"Mindestens ein Konto ist falsch!\")","v":"Mindestens ein Konto ist falsch!"},null,null,null,null,{"$f":"IF(J50=\"\",\"\",VLOOKUP(J50,Kontenplan!$A$4:$B$33,2))","v":""}]
["Geschäftsvorfall",null,null,"USt.",38,{"$f":"IF(AND(D54=200,D55=38,G54=238),\"Die Beträge sind richtig!\",\"Mindestens ein Betrag ist falsch!\")","v":"Mindestens ein Betrag ist falsch!"}]
[null,null,null,"brutto",null,{"$f":"IF(AND(F50=\"Die Konten sind richtig!\",F51=\"Die Beträge sind richtig!\"),\"Alles richtig!\",\"Es sind noch Fehler vorhanden!\")","v":"Es sind noch Fehler vorhanden!"}]
[null,"Soll","Konto","€","Haben","Konto","€"]
["Buchungssatz","",{"$f":"IF(B54=\"\",\"\",VLOOKUP(B54,Kontenplan!$A$4:$B$33,2))","v":""},null,"",{"$f":"IF(E54=\"\",\"\",VLOOKUP(E54,Kontenplan!$A$4:$B$33,2))","v":""}]
[null,"",{"$f":"IF(B55=\"\",\"\",VLOOKUP(B55,Kontenplan!$A$4:$B$33,2))","v":""}]
[]
["8.","Die Hausbank der Tropic GmbH schreibt für ein Festgeldkonto Zinsen gut,",null,null,null,{"$f":"IF(AND(B61=\"2800\",E61=\"5710\"),\"Die Konten sind richtig!\",\"Mindestens ein Konto ist falsch!\")","v":"Mindestens ein Konto ist falsch!"}]
["Geschäftsvorfall",null,null,null,280,{"$f":"IF(AND(D61=E58,G61=E58),\"Die Beträge sind richtig!\",\"Mindestens ein Betrag ist falsch!\")","v":"Mindestens ein Betrag ist falsch!"}]
[null,null,null,null,null,{"$f":"IF(AND(F57=\"Die Konten sind richtig!\",F58=\"Die Beträge sind richtig!\"),\"Alles richtig!\",\"Es sind noch Fehler vorhanden!\")","v":"Es sind noch Fehler vorhanden!"}]
[null,"Soll","Konto","€","Haben","Konto","€"]
["Buchungssatz","",{"$f":"IF(B61=\"\",\"\",VLOOKUP(B61,Kontenplan!$A$4:$B$33,2))","v":""},null,"",{"$f":"IF(E61=\"\",\"\",VLOOKUP(E61,Kontenplan!$A$4:$B$33,2))","v":""}]
[]
[]
["9.","Zahlungseingang auf dem Bankkonto für vermietete Bürogebäude,",null,null,null,{"$f":"IF(AND(B68=\"2800\",E68=\"5400\"),\"Die Konten sind richtig!\",\"Mindestens ein Konto ist falsch!\")","v":"Mindestens ein Konto ist falsch!"}]
["Geschäftsvorfall",null,null,null,8500,{"$f":"IF(AND(D68=E65,G68=E65),\"Die Beträge sind richtig!\",\"Mindestens ein Betrag ist falsch!\")","v":"Mindestens ein Betrag ist falsch!"}]
[null,null,null,null,null,{"$f":"IF(AND(F64=\"Die Konten sind richtig!\",F65=\"Die Beträge sind richtig!\"),\"Alles richtig!\",\"Es sind noch Fehler vorhanden!\")","v":"Es sind noch Fehler vorhanden!"}]
[null,"Soll","Konto","€","Haben","Konto","€"]
["Buchungssatz","",{"$f":"IF(B68=\"\",\"\",VLOOKUP(B68,Kontenplan!$A$4:$B$33,2))","v":""},null,"",{"$f":"IF(E68=\"\",\"\",VLOOKUP(E68,Kontenplan!$A$4:$B$33,2))","v":""}]
[]
[]
["10.","Überweisung an das Finanzamt für KFZ-Steuer",null,null,null,{"$f":"IF(AND(B75=\"7030\",E75=\"2800\"),\"Die Konten sind richtig!\",\"Mindestens ein Konto ist falsch!\")","v":"Mindestens ein Konto ist falsch!"}]
["Geschäftsvorfall",null,null,null,480,{"$f":"IF(AND(D75=E72,G75=E72),\"Die Beträge sind richtig!\",\"Mindestens ein Betrag ist falsch!\")","v":"Mindestens ein Betrag ist falsch!"}]
[null,null,null,null,null,{"$f":"IF(AND(F71=\"Die Konten sind richtig!\",F72=\"Die Beträge sind richtig!\"),\"Alles richtig!\",\"Es sind noch Fehler vorhanden!\")","v":"Es sind noch Fehler vorhanden!"}]
[null,"Soll","Konto","€","Haben","Konto","€"]
["Buchungssatz","",{"$f":"IF(B75=\"\",\"\",VLOOKUP(B75,Kontenplan!$A$4:$B$33,2))","v":""},null,"",{"$f":"IF(E75=\"\",\"\",VLOOKUP(E75,Kontenplan!$A$4:$B$33,2))","v":""}]
[]
[]
["11.","Zieleinkauf von Jeansstoffen, ",null,"netto",6800,{"$f":"IF(AND(B82=\"2000\",B83=\"2600\",E82=\"4400\"),\"Die Konten sind richtig!\",\"Mindestens ein Konto ist falsch!\")","v":"Mindestens ein Konto ist falsch!"}]
["Geschäftsvorfall",null,null,"USt.",null,{"$f":"IF(AND(D82=6800,D83=1292,G82=8092),\"Die Beträge sind richtig!\",\"Mindestens ein Betrag ist falsch!\")","v":"Mindestens ein Betrag ist falsch!"}]
[null,null,null,"brutto",null,{"$f":"IF(AND(F78=\"Die Konten sind richtig!\",F79=\"Die Beträge sind richtig!\"),\"Alles richtig!\",\"Es sind noch Fehler vorhanden!\")","v":"Es sind noch Fehler vorhanden!"}]
[null,"Soll","Konto","€","Haben","Konto","€"]
["Buchungssatz","",{"$f":"IF(B82=\"\",\"\",VLOOKUP(B82,Kontenplan!$A$4:$B$33,2))","v":""},null,"",{"$f":"IF(E82=\"\",\"\",VLOOKUP(E82,Kontenplan!$A$4:$B$33,2))","v":""}]
[null,"",{"$f":"IF(B83=\"\",\"\",VLOOKUP(B83,Kontenplan!$A$4:$B$33,2))","v":""}]
[]
["12.","Ein Handwerker erhält eine Barzahlung für die Reparatur von Fensterläden im Bürogebäude",null,"netto",null,{"$f":"IF(AND(B89=\"6160\",B90=\"2600\",E89=\"2880\"),\"Die Konten sind richtig!\",\"Mindestens ein Konto ist falsch!\")","v":"Mindestens ein Konto ist falsch!"}]
["Geschäftsvorfall",null,null,"USt.",null,{"$f":"IF(AND(D89=560,D90=106.4,G89=666.4),\"Die Beträge sind richtig!\",\"Mindestens ein Betrag ist falsch!\")","v":"Mindestens ein Betrag ist falsch!"}]
[null,null,null,"brutto",666.4,{"$f":"IF(AND(F85=\"Die Konten sind richtig!\",F86=\"Die Beträge sind richtig!\"),\"Alles richtig!\",\"Es sind noch Fehler vorhanden!\")","v":"Es sind noch Fehler vorhanden!"}]
[null,"Soll","Konto","€","Haben","Konto","€"]
["Buchungssatz","",{"$f":"IF(B89=\"\",\"\",VLOOKUP(B89,Kontenplan!$A$4:$B$33,2))","v":""},null,"",{"$f":"IF(E89=\"\",\"\",VLOOKUP(E89,Kontenplan!$A$4:$B$33,2))","v":""}]
[null,"",{"$f":"IF(B90=\"\",\"\",VLOOKUP(B90,Kontenplan!$A$4:$B$33,2))","v":""}]
[]
["13.","Die Tropic GmbH überweist an einen Lieferer für Jeansstoffe",null,null,null,{"$f":"IF(AND(B96=\"4400\",E96=\"2800\"),\"Die Konten sind richtig!\",\"Mindestens ein Konto ist falsch!\")","v":"Mindestens ein Konto ist falsch!"}]
["Geschäftsvorfall",null,null,null,8092,{"$f":"IF(AND(D96=E93,G96=E93),\"Die Beträge sind richtig!\",\"Mindestens ein Betrag ist falsch!\")","v":"Mindestens ein Betrag ist falsch!"}]
[null,null,null,null,null,{"$f":"IF(AND(F92=\"Die Konten sind richtig!\",F93=\"Die Beträge sind richtig!\"),\"Alles richtig!\",\"Es sind noch Fehler vorhanden!\")","v":"Es sind noch Fehler vorhanden!"}]
[null,"Soll","Konto","€","Haben","Konto","€"]
["Buchungssatz","",{"$f":"IF(B96=\"\",\"\",VLOOKUP(B96,Kontenplan!$A$4:$B$33,2))","v":""},null,"",{"$f":"IF(E96=\"\",\"\",VLOOKUP(E96,Kontenplan!$A$4:$B$33,2))","v":""}]
[]
[]
["Abschlussangaben"]
["A1.","Endbestände lt. Inventur",null,null,null,{"$f":"IF(AND(B104=\"8010\",E104=\"2100\",B105=\"8010\",E105=\"2200\"),\"Die Konten sind richtig!\",\"Mindestens ein Konto ist falsch!\")","v":"Mindestens ein Konto ist falsch!"}]
["Abschlussangabe",null,"           - Unfertige Erzeugnisse",null,18000,{"$f":"IF(AND(D104=E101,D105=E102,G104=E101,G105=E102),\"Die Beträge sind richtig!\",\"Mindestens ein Betrag ist falsch!\")","v":"Mindestens ein Betrag ist falsch!"}]
[null,null,"           - Fertige Erzeugnisse",null,30000,{"$f":"IF(AND(F100=\"Die Konten sind richtig!\",F101=\"Die Beträge sind richtig!\"),\"Alles richtig!\",\"Es sind noch Fehler vorhanden!\")","v":"Es sind noch Fehler vorhanden!"}]
[null,"Soll","Konto","€","Haben","Konto","€"]
["Buchungssatz","",{"$f":"IF(B104=\"\",\"\",VLOOKUP(B104,Kontenplan!$A$4:$B$33,2))","v":""},null,"",{"$f":"IF(E104=\"\",\"\",VLOOKUP(E104,Kontenplan!$A$4:$B$33,2))","v":""}]
[null,"",{"$f":"IF(B105=\"\",\"\",VLOOKUP(B105,Kontenplan!$A$4:$B$33,2))","v":""},null,"",{"$f":"IF(E105=\"\",\"\",VLOOKUP(E105,Kontenplan!$A$4:$B$33,2))","v":""}]
[]
[{"$f":"IF(AND(F8=\"Alles richtig!\",F15=\"Alles richtig!\",F22=\"Alles richtig!\",F29=\"Alles richtig!\",F37=\"Alles richtig!\",F45=\"Alles richtig!\",F52=\"Alles richtig!\",F59=\"Alles richtig!\",F66=\"Alles richtig!\",F73=\"Alles richtig!\",F80=\"Alles richtig!\",F87=\"Alles richtig!\",F94=\"Alles richtig!\",F102=\"Alles richtig!\"),\"Super, die Aufgabe ist gelöst!\",\"Bilden Sie alle Buchungssätze!\")","v":"Bilden Sie alle Buchungssätze!"}]

{"sheet":"Hauptbuch","index":2,"n_rows":118,"n_cols":10,"rows_kept":118,"cut":false,"hidden":false,"merged":[[78,1,78,8],[90,1,90,8],[93,1,93,8],[96,1,96,8],[105,1,105,8],[99,1,99,8],[102,1,102,8],[48,1,48,8],[55,1,55,8],[61,1,61,8],[66,1,66,8],[72,1,72,8],[117,1,117,8],[108,1,108,8],[111,1,111,8],[114,1,114,8],[0,0,0,9],[2,1,2,8],[5,1,5,8],[8,1,8,8],[11,1,11,8],[16,1,16,8],[84,1,84,8],[21,1,21,8],[26,1,26,8],[31,1,31,8],[36,1,36,8],[41,1,41,8]]}
["Hauptbuch"]
[]
["Soll","0510 Bebaute Grundstücke",null,null,null,null,null,null,null,"Haben"]
["EBK","8000",null,null,{"$f":"Bilanz!C4","v":420000},"SBK",8010,null,null,{"$f":"E4","v":420000}]
[]
["Soll","0700 Technische Anlagen und Maschinen",null,null,null,null,null,null,null,"Haben"]
["EBK","8000",null,null,{"$f":"Bilanz!C5","v":140000},"SBK",8010,null,null,{"$f":"E7","v":140000}]
[]
["Soll","0800 Betriebs- und Geschäftsausstattung",null,null,null,null,null,null,null,"Haben"]
["EBL","8000",null,null,{"$f":"Bilanz!C6","v":68000}]
[]
["Soll","2000 Rohstoffe",null,null,null,null,null,null,null,"Haben"]
["EBK","8000",null,null,{"$f":"Bilanz!C7","v":30000}]
[]
[]
[]
["Soll","2020 Hilfsstoffe",null,null,null,null,null,null,null,"Haben"]
["EBK","8000",null,null,{"$f":"Bilanz!C8","v":7900}]
[]
[]
[]
["Soll","2030 Betriebsstoffe",null,null,null,null,null,null,null,"Haben"]
["EBK","8000",null,null,{"$f":"Bilanz!C9","v":4200}]
[]
[]
[]
["Soll","2100 Unfertige Erzeugnisse",null,null,null,null,null,null,null,"Haben"]
["EBK","8000",null,null,{"$f":"Bilanz!C10","v":22000}]
[]
[]
[]
["Soll","2200 Fertige Erzeugnisse",null,null,null,null,null,null,null,"Haben"]
["EBK","8000",null,null,{"$f":"Bilanz!C11","v":26000}]
[]
[]
[]
["Soll","2400 Forderungen aus Lieferungen und Leistungen",null,null,null,null,null,null,null,"Haben"]
["EBK","8000",null,null,{"$f":"Bilanz!C12","v":43000}]
[]
[]
[]
["Soll","2600 Vorsteuer",null,null,null,null,null,null,null,"Haben"]
[]
[]
[]
[]
[]
[]
["Soll","2800 Kreditinstitute/Bank",null,null,null,null,null,null,null,"Haben"]
["EBK","8000",null,null,{"$f":"Bilanz!C13","v":24000}]
[]
[]
[]
[]
[]
["Soll","2880 Kasse",null,null,null,null,null,null,null,"Haben"]
["EBK","8000",null,null,{"$f":"Bilanz!C14","v":5400}]
[]
[]
[]
[]
["Soll","3000 Eigenkapital",null,null,null,null,null,null,null,"Haben"]
["A",8020,null,null,{"$f":"IF(GuV!F8>0,GuV!F8,0)","v":"?"},"EBK",8000,null,null,{"$f":"Bilanz!F4","v":739650}]
["SBK",8010,null,null,null,"A",8020,null,null,{"$f":"IF(GuV!C13>0,GuV!C13,0)","v":"?"}]
[]
[]
["Soll","4400 Verbindlichkeiten aus Lieferungen und Leistungen",null,null,null,null,null,null,null,"Haben"]
[null,null,null,null,null,"EBK",8000,null,null,{"$f":"Bilanz!F5","v":50850}]
[]
[]
[]
[]
["Soll","4800 Umsatzsteuer",null,null,null,null,null,null,null,"Haben"]
[]
[]
[]
[]
[]
["Soll","5000 Umsatzerlöse",null,null,null,null,null,null,null,"Haben"]
[]
[]
[]
[]
[]
["Soll","5200 Bestandsveränderunen",null,null,null,null,null,null,null,"Haben"]
[]
[]
[]
[]
[]
["Soll","5400 Mieterträge",null,null,null,null,null,null,null,"Haben"]
[]
[]
["Soll","5710 Zinserträge",null,null,null,null,null,null,null,"Haben"]
[]
[]
["Soll","6000 Aufwendungen für Rohstoffe",null,null,null,null,null,null,null,"Haben"]
[]
[]
["Soll","6020 Aufwendungen für Hilfsstoffe",null,null,null,null,null,null,null,"Haben"]
[]
[]
["Soll","6030 Aufwendungen für Betriebsstoffe",null,null,null,null,null,null,null,"Haben"]
[]
[]
["Soll","6160 Fremdinstandhaltung",null,null,null,null,null,null,null,"Haben"]
[]
[]
["Soll","6200 Löhne",null,null,null,null,null,null,null,"Haben"]
[]
[]
["Soll","6300 Gehälter",null,null,null,null,null,null,null,"Haben"]
[]
[]
["Soll","6870 Werbung",null,null,null,null,null,null,null,"Haben"]
[]
[]
["Soll","7030 Kraftfahrzeugsteuer",null,null,null,null,null,null,null,"Haben"]

{"sheet":"GuV","index":3,"n_rows":13,"n_cols":6,"rows_kept":13,"cut":false,"hidden":false,"merged":[[0,0,0,5],[2,1,2,4]]}
["Gewinn- und Verlustrechnung"]
[]
["Soll","8020 Gewinn und Verlust",null,null,null,"Haben"]
["5200","Bestandsveränderungen","?","5000","Umsatzerlöse","?"]
["6000","Aufwendungen für Rohstoffe",null,5200,"Bestandsveränderungen"]
["6020","Aufwendungen für Hilfsstoffe",null,"5400","Mieterträge"]
["6030","Aufwendungen für Betriebsstoffe",null,"5710","Zinserträge"]
["6160","Fremdinstandhaltung",null,"3000","Eigenkapital","?"]
["6200","Löhne"]
["6300","Gehälter"]
["6870","Werbung"]
["7030","Kraftfahrzeugsteuer"]
["3000","Eigenkapital","?"]

{"sheet":"Bilanz","index":4,"n_rows":28,"n_cols":6,"rows_kept":28,"cut":false,"hidden":false,"merged":[[2,1,2,4],[0,0,0,5],[16,1,16,4]]}
["Bilanzbuch"]
[]
["Aktiva","8000 Eröffnungsbilanz",null,null,null,"Passiva"]
["0510","Bebaute Grundstücke",420000,"3000","Eigenkapital",{"$f":"F15-SUM(F5:F14)","v":739650}]
["0700","Technische Anlagen und Maschinen",140000,"4400","Verbindlichkeiten a.L.u.L.",50850]
["0800","Betriebs- und Geschäftsausstattung",68000]
["2000","Rohstoffe",30000]
["2020","Hilfsstoffe",7900]
["2040","Betriebsstoffe",4200]
["2100","Unfertige Erzeugnisse",22000]
["2200","Fertige Erzeugnisse",26000]
["2400","Forderungen a.L.u.L.",43000]
["2800","Bank",24000]
["2880","Kasse",5400]
[null,null,{"$f":"SUM(C4:C14)","v":790500},null,null,{"$f":"C15","v":790500}]
[]
["Aktiva","8010 Schlussbilanz",null,null,null,"Passiva"]
["0510","Bebaute Grundstücke",null,"3000","Eigenkapital"]
["0700","Technische Anlagen und Maschinen",null,"4400","Verbindlichkeiten a.L.u.L."]
["0800","Betriebs- und Geschäftsausstattung",null,"4800","Umsatzsteuer"]
["2000","Rohstoffe"]
["2020","Hilfsstoffe"]
["2040","Betriebsstoffe"]
["2100","Unfertige Erzeugnisse"]
["2200","Fertige Erzeugnisse"]
["2400","Forderungen a.L.u.L."]
["2800","Bank"]
["2880","Kasse"]

{"sheet":"Kontenplan","index":5,"n_rows":33,"n_cols":2,"rows_kept":33,"cut":false,"hidden":false,"merged":[]}
[null,"Kontenplan"]
[]
["Nr.","Konto"]
["0510","Bebaute Grundstücke"]
["0700","Technische Anlagen und Maschinen"]
["0800","Beriebs- und Geschäftsausstattung"]
["2000","Rohstoffe"]
["2020","Hilfsstoffe"]
["2030","Betriebsstoffe"]
["2100","Unfertige Erzeugnisse"]
["2200","Fertige Erzeugnisse"]
["2400","Forderungen a.L.u.L."]
["2600","Vorsteuer"]
["2800","Kreditinstitute/Bank"]
["2880","Kasse"]
["3000","Eigenkapital"]
["4400","Verbindlichkeiten a.L.u.L."]
["4800","Umsatzsteuer"]
["5000","Umsatzerlöse"]
["5200","Bestandsveränderungen"]
["5400","Mieterträge"]
["5710","Zinserträge"]
["6000","Aufwendungen für Rohstoffe"]
["6020","Aufwendungen für Hilfsstoffe"]
["6030","Aufwendungen für Betriebsstoffe"]
["6160","Fremdinstandhaltung"]
["6200","Löhne"]
["6300","Gehälter"]
["6870","Werbung"]
["7030","Kraftfahrzeugsteuer"]
["8000","Eröffnungsbilanz"]
["8010","Schlussbilanz"]
["8020","Gewinn und Verlust"]